{"text_format":"3","workbook":"xlsx","n_sheets":1,"sheets":["Sheet1"],"read":"whole","date_system":"1900"}

{"sheet":"Sheet1","index":0,"n_rows":73,"n_cols":14,"rows_kept":73,"merged":[[0,0,0,13],[1,0,1,1],[1,2,1,13],[2,0,4,0],[2,1,4,1],[2,2,4,2],[2,3,4,3],[2,4,2,6],[2,7,2,13],[3,4,4,4],[3,5,4,5],[3,6,4,6],[3,7,3,9],[3,10,4,10],[3,11,4,11],[3,12,4,12],[3,13,4,13],[71,0,71,5],[72,0,72,13]]}
["2023年“C”项目弱电工程工程量清单与报价表"]
["工程名称：",null,""]
["序号","项目名称","项目特征描述","计量\r\n单位","限价",null,null,"投标报价"]
[{"$nulls":4},"工程量","单价","合价","税前综合单价组成（元）",null,null,"税前综合单价\nd=a+b+c","税金（9%）\ne=d*9%","含税全费用综合单价\nf=d+e","含税合价"]
[{"$nulls":7},"人工单价\n(a)","材料单价\n(b)","综合费（管理费、利润等）\nc=(a+b)*费率"]
[" ","弱电工程"," "," "," "," "," ",{"$nulls":6}," "]
[1,"安防设备箱","1、名称：安防设备箱\n2：做法：400W*300Hx200D","个",23,320,{"$f":"E7*F7","v":7360},null,null,{"$f":"(H7+I7)*0%","v":0},{"$f":"H7+I7+J7","v":0},{"$f":"K7*0.09","v":0},{"$f":"K7+L7","v":0},{"$f":"E7*M7","v":0}]
[2,"室外枪机摄像机(1080P)","1、采用高性能400万像素1/2.7英寸CMOS图像传感器2、支持星光级夜视效果，照度：0.001Lx(彩色模式);0.0001Lx(黑白模式)3、支持H.264、H.265、MJPEG视频编码格式。4、视频分辨率及帧率：主码流（2688*1520@30fps），辅码流（704*576@25fps）5、含1路报警输入接口  6、附着于路灯立杆安装","台",51,520,26520,null,null,{"$f":"(H8+I8)*0%","v":0},{"$f":"H8+I8+J8","v":0},{"$f":"K8*0.09","v":0},{"$f":"K8+L8","v":0},{"$f":"E8*M8","v":0}]
[3,"室内半球摄像机(400万)","1、采用高性能400万像素1/2.7英寸CMOS图像传感器2、支持星光级夜视效果，照度：0.001Lx(彩色模式);0.0001Lx(黑白模式)3、支持H.264、H.265、MJPEG视频编码格式。4、视频分辨率及帧率：主码流（2688*1520@30fps），辅码流（704*576@25fps）5、含1路报警输入接口","台",1,580,580,null,null,0,0,0,0,0]
[4,"球形摄像机(400万)","1、支持30倍光学变倍，16倍数字变倍2、支持H.265编码，实现超低码流传输信噪比达到55dB3、支持隐私遮挡，最多24块区域,同时最多有8块区域在同一个画面4、宽动态效果，加上图像降噪功能，完美的白天/夜晚图像展现5、内置150米红外灯补光，采用倍率与红外灯功率匹配算法，补光效果更均匀6、室外球达到IP66防护等级，6000V防雷、防浪涌和防突波保护","台",5,3260,16300,null,null,0,0,0,0,0]
[5,"球形支架","壁装、吊装或室外立杆安装","个",5,50,250,null,null,0,0,0,0,0]
[6,"摄像机电源","12V/2A圆头、两端带线式，国标，输入线长500mm，输出线长1000mm","个",52,45,2340,null,null,0,0,0,0,0]
[7,"光电转换器","1、名称：光电转换器 2、转换形式：网线-光缆","对",{"$f":"53+32","v":85},260,22100,null,null,0,0,0,0,0]
[8,"光电转换器机架","1、名称光电转换器机架。2、要求不少于14槽位，安装于管理间","台",4,960,3840,null,null,0,0,0,0,0]
[9,"网络电源防浪涌保护器","1、名称：网络电源防浪涌保护器。2、工作电压AC24V,标称放电电流In≥5KA/线(8/20us)，用于室外摄像机","个",56,95,5320,null,null,0,0,0,0,0]
[10,"硬盘录像机","3U标准机架式；2个HDMI，2个VGA,HDMI+VGA组内同源；16盘位，可满配6T硬盘；2个千兆网口；2个USB2.0接口、1个USB3.0接口；1个eSATA接口；支持AID0、1、5、10，支持全局热备盘；输入带宽：320M；64路H.264、H.265混合接入；最大支持6×1080P解码；支持H.265、H.264解码；Smart2.0/整机热备/ANR/智能检索/智能回放/车牌检索/人脸检索/热度图/客流量统计/分时段回放/超高倍速回放/双系统备份","台",1,5500,5500,null,null,0,0,0,0,0]
[11,"55寸液晶拼接屏","显示尺寸：55inch；边框宽度：3.5mm；物理分辨率：1920x1080@60Hz（向下兼容）；亮度：500cd/m²；可视角：178°(水平)/178°(垂直)；色深度：8bit,6.7M","块",4,3300,13200,null,null,0,0,0,0,0]
[12,"4路解码器","支持HDMI、BNC输出口解码输出；支持H.265、H.264、MPEG4、MJPEG等多种编码码流解码，解码性能强劲，支持4K超高清输出；HDMI（奇数口）输出分辨率最高支持4K（3840×2160@30Hz）；支持H.265、H.264、MPEG4、MJPEG等主流的编码格式的解码；支持PS、RTP、TS、ES等主流的封装格式的解码；支持H.265、H.264的Baseline、Main、High-profile编码级别的解码；支持G.722、G.711A、G.726、G.711U、MPEG2-L2、AAC音频格式的解码；输入参数：1路HDMI,1路DVI；输出参数：4路HDMI，2路BNC","套",1,13000,13000,null,null,0,0,0,0,0]
[13,"硬盘","1、名称：硬盘 2、具体要求：容量要求不低于企业级6T","块",16,1400,22400,null,null,0,0,0,0,0]
[14,"UPS总配电箱","根据配电箱系统图定制","套",1,2800,2800,null,null,0,0,0,0,0]
[15,"UPS电源","10kVA，三进三出，后备时间1小时","套",1,46500,46500,null,null,0,0,0,0,0]
[16,"机架式UPS","2kVA，单进单出，后备时间1小时","台",1,15600,15600,null,null,0,0,0,0,0]
[17,"机房局部等电位接地端子板","LEB","套",1,14,14,null,null,0,0,0,0,0]
[18,"电源防雷器","CPM-R20S","套",1,95,95,null,null,0,0,0,0,0]
[19,"电源防雷器","CPM-R20T","套",1,95,95,null,null,0,0,0,0,0]
[20,"6类非屏蔽双绞线","1、名称：6类非屏蔽双绞线 2、具体详设计","m",305,4.2,1281,null,null,0,0,0,0,0]
[21,"6芯室外铠装单模光纤","1、名称：6芯室外铠装单模光纤。2、6芯,室外铠装单模,LSOH","m",300,2.6,780,null,null,0,0,0,0,0]
[22,"6类非屏蔽跳线盘","1、名称：6类非屏蔽跳线盘。2、要求24口跳线盘,含插座","个",1,1230,1230,null,null,0,0,0,0,0]
[23,"管理间数据跳线","1、名称：管理间数据跳线 2、要求：6类,LSOH,RJ45-RJ45,2m","根",35,45,1575,null,null,0,0,0,0,0]
[24,"光纤配线架","1、名称：光纤配线架 2、要求：容量不少于6芯,LC接口,配适配板","个",15,886,13290,null,null,0,0,0,0,0]
[25,"光纤连接中心","1、名称：光纤连接中心 2、要求：容量不少于144芯,LC接口,配适配板","套",1,1200,1200,null,null,0,0,0,0,0]
[26,"LC单模光纤尾纤","1、名称：LC单模光纤尾纤 2、要求：单芯,LC单模,1m","根",330,9,2970,null,null,0,0,0,0,0]
[27,"单模光纤跳线LC-LC","LC到LC单模双芯跳线,LSOH,2m","根",52,35,1820,null,null,0,0,0,0,0]
[28,"壁挂机柜","1、名称：网络机柜 2、要求：600*600*15U,带PDU","个",1,280,280,null,null,0,0,0,0,0]
[29,"网络机柜","1、名称：网络机柜 2、要求：800*600*22U,带PDU，用于管理间","个",2,650,1300,null,null,0,0,0,0,0]
[30,"网络防电涌保护器","B2类SPD，短路电流值75A(5/300us)","套",2,180,360,null,null,0,0,0,0,0]
[31,"核心交换机","交换容量≥2Tbps、包转发率≥350Mpps；配置模块化双交流电源，配置≥16个万兆光口、空余≥1个业务板卡扩展槽位；支持堆叠功能，支持VXLAN、静态路由、RIP、OSPF、BGP协议，支持扩展1/2.5/5/10G多速率接口板卡、10G、25G、40G接口板卡和防火墙插卡，支持零配置启动功能，支持CPU保护功能","台",1,3500,{"$f":"E37*F37","v":3500},null,null,0,0,0,0,0]
[32,"单模光模块","光模块-SFP-GE-单模模块-(1310nm,10km,LC)","块",15,170,2550,null,null,0,0,0,0,0]
[33,"汇聚交换机","交换容量≥2Tbps、包转发率≥350Mpps；配置模块化双交流电源，配置≥16个万兆光口、空余≥1个业务板卡扩展槽位；支持堆叠功能，支持VXLAN、静态路由、RIP、OSPF、BGP协议，支持扩展1/2.5/5/10G多速率接口板卡、10G、25G、40G接口板卡和防火墙插卡，支持零配置启动功能，支持CPU保护功能","台",1,3500,3500,null,null,0,0,0,0,0]
[34,"防火墙","采用非X8664位多核高性能处理器和高速存储器；主控模块内存≥2G；1U盒式设备，防火墙吞吐量≥1.5G，每秒新建连接数≥2万，并发连接数≥50万。IPSecVPN隧道数≥750；IPSECVPN加密性能≥400M；配置千兆以太网电接口≥8个，千兆Combo口≥2个；配置硬盘≥500G，配置≥1年入侵防御、防病毒、应用识别、URL特征库升级服务，配置≥15个SSLVPN接入授权","台",1,15000,15000,null,null,{"$f":"(H40+I40)*0%","v":0},{"$f":"H40+I40+J40","v":0},{"$f":"K40*0.09","v":0},{"$f":"K40+L40","v":0},{"$f":"E40*M40","v":0}]
[35,"48口接入交换机","交换容量≥330Gbps、包转发率≥130Mpps；配置≥48个千兆电口、≥2个千兆光口、≥2个1G/2.5G/5G多速率电口；支持堆叠，支持静态路由、RIP、OSPF协议；支持CPU保护功能，支持零配置启动，支持链路聚合零丢包；支持端口防雷，防雷能力不低于10KV","台",2,2300,4600,null,null,0,0,0,0,0]
[36,"IP\n网络控制主机","1.显示屏尺寸:17.3英寸\n;2.屏幕颜色:TFT262144色真彩色;3.显示屏:17.3〞高分辨率LED液晶屏(1920*1080);4.触摸屏:10点电容触摸屏;5.工作环境温度:-10℃~50℃6.\n相对湿度10%~95%,非凝结状态\n;7.芯片组:IntelB75;8.标准接口6x串口、1xHDMI、1xVGA;8xUSB口;9.存储:支持、2.5\"、mSATA硬盘;标配:mSATA128G;10.内存:DDR31333/1600MHz最16GB;标配:8G/DDR3/1600MHz;11.网卡:1个RealtekGbE,1000M;12.网络协议:支持IPV6、IPV4网络协议;13.CPU:IntelCorei53.10GHz四核;14.系统音噪比:LINE:70dB;MIC:60dB15.系统音频信号失真度:1KHz<0.5%;16.系统音频信号标准输入电平LINE:300mV;MIC:5mV;17.系统音频信号标准输出电平0dBV1电源:输入电压:AC100V-240V;19.软件操作平台:Windows","台",1,12000,12000,null,null,0,0,0,0,0]
[37,"话筒","1.换能方式:电容式;\n2.指向性:心形指向性;\n3.频率响应:20Hz-18KHz;\n4.输出阻抗:75Ω,平衡;\n5.灵敏度:-40dB±2dB;6.\n动态范围:109dB,1KHatmaxspl;7.信噪比:1KHzat1Pa;8.供电电压:DC3V/幻象48V;9.开电子轻触;10.咪杆长度:410mm\n;11.线材配置:8米双芯、卡龙母+卡龙公;\n12.单支话筒重量:0.78Kg;\n13.底座规格(LxWxH):114×140×37mm","台",1,450,450,null,null,0,0,0,0,0]
[38,"DVD\n播放器","1音源输出:1组RCA左右声道,1路同轴数字信号1x光纤数字信号;\n2.音源规格:DISC光碟(CD/VCD/DVD)、USB;3.1路AV视频输出,1路HDMI视频输出;4.HDMI分辨率:480P;5.信噪比:95dB;6.响应频率:20Hz–20kHz;7.总谐波失真:<0.01%;围:>94dB;9.失真度:>0.01%;10.频率:44.1KHz;11.电源:AC90V-260V(50Hz/60Hz);12.电源耗:10W15W;寸:483×210×44mm;14.重量:3Kg","台",1,1650,1650,null,null,0,0,0,0,0]
[39,"前置放大器","1.话筒1-5的输入灵敏度:话筒:5mV/600Ω非平衡;线路RCA:775mV/10KΩ非平衡;\n2.辅助1-3输入:AUX1.2.3:3500mV/10KΩ非平衡;\n3.EMC1-2输入:RAC:非平衡200mV~1000mV/10KΩ;MIC:非平衡5mV~25mV/600Ω;4.频率应:20Hz-20KHz(±3dB);5.信噪比:MIC输入:50dB;AUX输入:80dB;\n6.音调调节:低音:±10dBat100Hz;高音:±10dBat10KHz;\n7.电源:~220V/50Hz;\n8.电源功耗:20W;\n9.尺寸:484×303×88mm;10.重量:4.54Kg","台",1,650,650,null,null,0,0,0,0,0]
[40,"消防采集器","1.网络接口:标准RJ45输入;\n2.传输速率:100Mbps;\n3.支持协议:TCP/IP、UDP;4.短路接口:工业标准压线接线端子;\n5.功耗:≤20W;6.输入电源:~190V-240V50Hz-60Hz","台",1,400,400,null,null,0,0,0,0,0]
[41,"监听音箱","有源监听音箱","套",1,125,125,null,null,0,0,0,0,0]
[42,"节目定时器","1.标准机柜式设计(2U),黑色氧化铝拉丝面板,人性化的抽手,考究的工艺,尽显高档质。\n2.设有十路可编辑定时控制电源,最大用电量2500W。\n3.大屏幕液晶显示屏,图形化界面,操作简单。可显示10路电源状态指示、日期、星期、时间、下一步程序的信息等。\n4.具备1路钟声输出接口,1路报警短路信号输入接口。\n5.具备1路触发控制短路信号输出接口,可触发报警器等设备。6.设有短路触发输出接口,可控制十六位电源时序器开关,扩展定时电源插座。\n7.支持将一星期内某一天的程序拷贝到其它的某一天或某几天。8.断电程序不丢失,来电自\n动恢复运行。\n9.存储容量大,可进行多步编程定时控制电源。","台",1,1250,1250,null,null,0,0,0,0,0]
[43,"IP\n网络终端功放(\n500W\n)","1.网络接口:标准RJ45输入\n2.传输速率:100Mbps3.支持协议:TCP/IP,UDP4.音频格式:MP35.音频模式:16位CD音质\n6.采样率:8KHz~48KHz7.EMC输入灵敏度:775mV(非平衡)8.AUX输入灵敏度:350mV(非平衡)\n9.MIC输入灵敏度:5mV(非平衡10.AUX输出幅度:1000mV2路莲花座输出接口11.AUX输抗:470Ω\n12.高音提升、衰减:±10dB13.低音提升、衰减:±10dB14.USB接口:最大支持16G内存U接入\n15.额定功率:500W16.整机功耗:待机功耗:<10W18.频率响应:80Hz~16KHz+1/-3dB19.谐波失真:≤1%20.信噪比:>65dB21.输出方式:4~16Ω定阻输出、70V/100V定压输出\n22.保护电路:直流输出、过载、过温、短路保护电路\n23.工作环境温度:5℃~40℃\n24.工作环境湿度:20%~80%相对湿度,无结露\n25.输入电源:~220V50Hz","台",2,2500,5000,null,null,0,0,0,0,0]
[44,"室外防水音柱","1.网络接口:标准RJ45输入\n2.传输速率:100Mbps3.支持协议:TCP/IPUDP4.音频格式:MP35.音频模式:16位CD音质6.采样率:8KHz~48KHz7.EMC输入灵敏度:775mV(非平衡)\n8.AUX输入灵敏度:350mV(非平衡)\n9.MIC输入灵敏度:5mV(非平衡)\n10.AUX输出幅度:1000mV2路莲花座输出接口\n11.AUX输出阻抗:470Ω\n12.高音提升、衰减:±10dB13.低音提升、衰减:±10dB14.USB接口:最大支持16G内存U盘接入\n15.额定功率:500W16.整机功耗:待机功耗:<10W18.频率响应:80Hz~16KHz+1/-3dB19.谐波失真:≤1%20.信噪比:>65dB21.输出方式:4~16Ω定阻输出、70V/100定压输出\n22.保护电路:直流输出、过载、过温、短路保护电路\n23.工作环境温度:5℃~40℃\n24.工作环境湿度:20%~80%相对湿度,无结露\n25.输入电源:~220V50Hz","只",36,240,8640,null,null,0,0,0,0,0]
[45,"门禁一体机","设备采用7英寸LCD触摸显示屏，屏幕流明度350cd/㎡，分辨率不小于1024*600，屏幕防暴等级IK04。设备采用嵌入式Linux系统，支持刷脸认证，支持IC卡，身份证卡号读取，CPU卡内容读取及开启/关闭NFC刷卡功能。设备支持通过WEB进行设备信息查询;支持通过WEB进行用户信息管理;支持通过WEB进行设备时间管理;支持通过WEB进行系统维护;支持通过WEB进行安全操作管理;支持通过WEB进行人脸、指纹等技术参数配置;支持通过WEB进行图像参数配置。设备应具备以下报警功能：当连续若干次在目标信息识读设备或管理/控制部分上实施错误操作时；当未使用授权的钥匙而强行通过出入口；未经正常操作而使出入口开启时；出入口开启时间超过设定值；设备被拆除；胁迫码；黑名单事件；设备应具有2路入侵探测接口，能联动报警输出；设备应具有防拆功能，强力拆除时，可上传报警事件到中心。设备支持IP65防水等级。","个",1,1942,1942,null,null,0,0,0,0,0]
[46,"双门磁力锁","双门磁力锁：工作电压:DC12V工作电流:1000mA/500mA承受拉力:280KG适用范围:木门、玻璃门、金属门、防盗门产品尺寸:506*25*48开门类型:断电开门","个",1,320,320,null,null,0,0,0,0,0]
[47,"磁力锁电源","输入电压：AC220V±20%；DC12V；额定输出电流：3A/5A；外壳绝缘电压：1.5KV","个",1,100,100,null,null,0,0,0,0,0]
[48,"磁力锁支架","磁力锁L型支架；材质：高强度铝合金；开门方式：90°单向开门；适用电锁：磁力锁系列","个",1,208,208,null,null,0,0,0,0,0]
[49,"出门按钮","尺寸：长86x宽86，结构：塑料面板，性能：最大耐电流1.25A电压250v，输出：常开，类型：适合埋入式电器盒使用","个",1,16,16,null,null,0,0,0,0,0]
[50,"WDZ-RYY-3x1.5","1.型号、规格、名称：配线 WDZ -RYY-3*1.5 \n2.敷设方式：详设计施工图 \n3.包管方式：详设计施工图\n","m",1948.1,6.2,12078.22,null,null,0,0,0,0,0]
[51,"闭门器","适装门重：60-85KG适装门宽≤1100mm闭门力量：EN4开门角度≤180°使用寿命：100万次适用环境温度范围：-30℃---50℃双段速度可调锁门速度：0°--15°范围内可调闭门速度：15°--180°范围内可调建议闭门速度在180°至15°时略快，在15°至0°时放慢，以门扇充分关闭为准。防止关门速度过快导致门扇与门框发生撞击。无90度定位停门的功能。","个",1,140,140,null,null,0,0,0,0,0]
[52,"WDZB-RYY-4x1.0","1.型号、规格、名称：配线WDZ-RYY-4x1.0\n2.敷设方式：详设计施工图 \n3.包管方式：详设计施工图\n","m",1000,5.5,5500,null,null,0,0,0,0,0]
[53,"WDZ-RYY-2x1.0","1.型号、规格、名称：配线WDZ-RYY-2x1.0\n2.敷设方式：详设计施工图 \n3.包管方式：详设计施工图\n","m",1900,3.1,5890,null,null,0,0,0,0,0]
[54,"WDZC-RYSP-2x2.5","1.型号、规格、名称：配线 WDZC-RYSP-2x2.5\n2.敷设方式：详设计施工图 \n3.包管方式：详设计施工图\n","m",1948.1,8.15,15877.015,null,null,0,0,0,0,0]
[55,"钢管sc20","1.名称：电气配管\n2.材质： 热镀锌钢管\n3.规格： SC20\n4.敷设方式：综合\n5.其它：未尽事宜均满足设计施工图和现行技术、质量验收规范和工程所在地行业主管部门相关标准","m",150,20,3000,null,null,0,0,0,0,0]
[56,"钢管sc50","1.名称：电气配管\n2.材质： 热镀锌钢管\n3.规格： SC50\n4.敷设方式：综合\n5.其它：未尽事宜均满足设计施工图和现行技术、质量验收规范和工程所在地行业主管部门相关标准","m",85,41,3485,null,null,0,0,0,0,0]
[57,"HDPE 双壁波纹管 φ110","1.名称：HDPE 双壁波纹管 φ110\r\n2.材质：HDPE 双壁波纹管 \r\n3.规格：110\r\n4.配置形式及部位：综合\r\n5.其它：包含过线盒、转线盒、接线盒及外墙保温需增加的调节盒等的安装及材料费，\r\n6.其他：满足设计、规范及招标要求","m",{"$f":"1771*1.1","v":1948.1},19.59,38163.279,null,null,0,0,0,0,0]
[58,"七孔蜂窝管 φ110","1.名称：蜂窝管 φ110\r\n2.材质：\r\n3.规格：110\r\n4.配置形式及部位：综合\r\n5.其它：包含过线盒、转线盒、接线盒及外墙保温需增加的调节盒等的安装及材料费，\r\n6.其他：满足设计、规范及招标要求","m",1948.1,25.17,49033.677,null,null,0,0,0,0,0]
[59,"弱电井","1.规格、尺寸：设计施工名图\n2.具体做法详设计\n3.防渗、防水要求：满足相关规范\n4.其它：满足设计及施工验收规范要求","座",50,450,22500,null,null,0,0,0,0,0]
[60,"网线","1、名称：网线\r\n2、型号：  V——LSOH UTPCat6","m",1948,3.25,6331,null,null,0,0,0,0,0]
[61,"150mm厚C20混凝土垫层","1.混凝土种类： 混凝土C20（含模板）\n2.混凝土强度等级:C20","m3",85,480,40800,null,null,0,0,0,0,0]
[62,"C20混凝土包封","1.混凝土种类： 混凝土C20（含模板）\n2.混凝土强度等级:C20","m3",70,480,33600,null,null,0,0,0,0,0]
[63,"管沟土石方","1.项目名称：挖沟槽、基坑土石方\r\n2.土、石类别：综合\r\n3.开挖深度：综合\r\n4.开挖方式：投标人自行考虑\r\n5.地上、地下管线及建筑物、构筑物的保护：投标人自行考虑\r\n6.其余做法：满足设计及施工验收规范要求，并满足城管和环保要求","m3",{"$f":"1.04*1948","v":2025.92},15,30388.8,null,null,0,0,0,0,0]
[64,"回填方","1.项目名称：沟槽回填土石方\r\n2.回填料及密实度：满足设计及施工验收规范\r\n3.回填料来源、场内外运距：投标人自行考虑\r\n4.其余做法：满足设计及施工验收规范要求，并满足城管和环保要求","m3",{"$f":"E69-E71","v":1277.85},8,10222.8,null,null,0,0,0,0,0]
[65,"余方弃置","1.名称：余方弃置\r\n2.废弃料品种：土石方综合\r\n3.废弃料的运输方式、场内外运距、弃土场地及费用：投标人自行考虑，外弃场地必须满足当地相关行政主管部门的要求\r\n4.其余做法：满足城管和环保要求","m3",748.07,7.5,5610.525,null,null,0,0,0,0,0]
["合　　计",{"$nulls":5},{"$f":"SUM(G7:G71)","v":574421.316},{"$nulls":6},{"$f":"SUM(N7:N71)","v":0}]
["报价说明：1、投标人需按提供的报价格式要求及公式填报价格明细，未按提供格式填报价格明细、所报总价高于最高限价的均为无效报价，采购人不予接受。同时在工程量清单中公布最高全费用单价限价，投标人的全费用综合单价也不得超过综合单价限价，否则，采购人将不予以接受。2、“人工单价（a）”是指完成本清单项每单位工程量所需的所有人工费用，“材料单价（b）”是指完成本清单项每单位工程量所需的材料费用，注明主材为甲供的清单项“材料单价（b）”一栏可填写为0，或仅报辅材材料价；"]